{"text_format":"3","workbook":"xlsx","n_sheets":2,"sheets":["COMMENCER","FEUILLE DE TEMPS ANNUELLE"],"not_rendered":{"defined_names":2},"read":"whole","date_system":"1900"}

{"sheet":"COMMENCER","index":0,"n_rows":8,"n_cols":2,"rows_kept":8}
[null,"À PROPOS DE CE MODÈLE"]
[null,"Effectuez le suivi de vos heures quotidiennes, hebdomadaires, mensuelles et annuelles dans cette Employé feuille de présence."]
[null,"Renseignez les informations de base comme le nom de l’employé, le nom du responsable, l’adresse e-mail et le numéro de téléphone. "]
[null,"Ajoutez vos heures dans les tables correspondant à chaque mois. Consignez les heures normales et les heures supplémentaires dans des colonnes distinctes pour chaque jour de chaque semaine. "]
[null,"Le total des heures de travail, des heures normales et des heures supplémentaires est calculé automatiquement. "]
[null,"Remarques :"]
[null,"Des instructions supplémentaires sont disponibles dans la colonne A de la feuille de calcul FEUILLE DE TEMPS ANNUELLE. Ce texte a été intentionnellement masqué. Pour supprimer le texte, sélectionnez la colonne A et choisissez SUPPRIMER. Pour afficher le texte, sélectionnez la colonne A et changez la couleur de la police. "]
[null,"Pour en savoir plus sur les tables, appuyez sur MAJ, puis sur F10 au sein d’une table, et sélectionnez les options TABLE et TEXTE DE REMPLACEMENT."]

{"sheet":"FEUILLE DE TEMPS ANNUELLE","index":1,"n_rows":132,"n_cols":15,"rows_kept":132,"merged":[[0,1,0,2],[0,4,0,14],[10,6,10,7],[21,6,21,7],[32,6,32,7],[33,4,33,14],[43,6,43,7],[54,6,54,7],[65,6,65,7],[66,4,66,14],[76,6,76,7],[87,6,87,7],[98,6,98,7],[99,4,99,14],[109,6,109,7],[120,6,120,7],[131,6,131,7]]}
["Créez une feuille de temps de l’employé quotidienne, hebdomadaire, mensuelle ou annuelle dans cette feuille de calcul. \nDes instructions utiles sur l’utilisation de ce classeur sont disponibles dans les cellules de cette colonne. Appuyez sur la flèche Bas pour commencer.\nLe titre de cette feuille de calcul figure dans la cellule de droite, et le titre du premier trimestre (Janvier, février, mars) se trouve dans la cellule E1.","EMPLOYÉ FEUILLE DE PRÉSENCE",null,null,"Janvier, février, mars      Employé feuille de présence : Heures quotidiennes, hebdomadaires, mensuelles, annuelles"]
["Entrez le nom de l’employé dans la cellule C2, et les heures normales et supplémentaires de janvier dans la table correspondante à partir de la cellule E2.","Nom de l’employé :",null,null,"Janvier","Semaine 1","Heures supplémentaires","Semaine 2","Heures supplémentaires  ","Semaine 3","Heures supplémentaires   ","Semaine 4","Heures supplémentaires    ","Semaine 5","Heures supplémentaires     "]
["Entrez le nom du responsable dans la cellule C3.","Responsable :",null,null,"Lundi",{"v":8,"d":"8.0"}]
["Entrez l’adresse e-mail dans la cellule C4.","Adresse courriel :",null,null,"Mardi",{"v":8,"d":"8.0"},{"v":2,"d":"2.0"}]
["Entrez le numéro de téléphone dans la cellule C5. L’instruction suivante figure dans la cellule A9.","Téléphone :",null,null,"Mercredi"]
[{"$nulls":4},"Jeudi"]
[{"$nulls":4},"Vendredi"]
[{"$nulls":4},"Samedi"]
["Le total des heures normales annuelles est automatiquement calculé dans la cellule C9.","Heures normales :",{"$f":"HresNormales","v":31},null,"Dimanche"]
["Le total des heures supplémentaires annuelles est automatiquement calculé dans la cellule C10.","Heures supplémentaires :",{"$f":"Hres_sup","v":4},null,"Total des heures hebdomadaires",{"$f":"SUM(F3:F9)","v":{"v":16,"d":"16.0"}},{"v":2,"d":"2.0"},{"v":0,"d":"0.0"},{"v":0,"d":"0.0"},{"v":0,"d":"0.0"},{"v":0,"d":"0.0"},{"v":0,"d":"0.0"},{"v":0,"d":"0.0"},{"v":0,"d":"0.0"},{"v":0,"d":"0.0"}]
["Le total de toutes les heures annuelles est automatiquement calculé dans la cellule C11. Le total des heures normales (cellule F11) et des heures supplémentaires (cellule I11) effectuées en janvier est calculé automatiquement. L’instruction suivante figure dans la cellule A13.","Total",{"$f":"HresNormales+Hres_sup","v":35},null,{"$f":"TEXT(DATEVALUE(Janvier[[#Headers],[Janvier]]&\"  \"&YEAR(TODAY())),\"mmm.\")&\" total : Heures normales\"","v":"janv. total : Heures normales"},{"$f":"SUM(Janvier[Semaine 1],Janvier[Semaine 2],Janvier[Semaine 3],Janvier[Semaine 4],Janvier[Semaine 5])","v":{"v":16,"d":"16.0"}},{"$f":"TEXT(DATEVALUE(Janvier[[#Headers],[Janvier]]&\"  \"&YEAR(TODAY())),\"mmm.\")&\" total: Heures supplémentaires\"","v":"janv. total: Heures supplémentaires"},null,{"$f":"SUM(Janvier[Heures supplémentaires],Janvier[[Heures supplémentaires  ]],Janvier[[Heures supplémentaires   ]],Janvier[[Heures supplémentaires    ]],Janvier[[Heures supplémentaires     ]])","v":{"v":2,"d":"2.0"}}]
[]
["Entrez les heures normales et supplémentaires de février dans la table correspondante à partir de la cellule E13. L’instruction suivante figure dans la cellule A22.",{"$nulls":3},"Février","Semaine 1","Heures supplémentaires","Semaine 2","Heures supplémentaires  ","Semaine 3","Heures supplémentaires   ","Semaine 4","Heures supplémentaires    ","Semaine 5","Heures supplémentaires     "]
[{"$nulls":4},"Lundi",{"v":8,"d":"8.0"}]
[{"$nulls":4},"Mardi",{"v":7,"d":"7.0"},{"v":2,"d":"2.0"}]
[{"$nulls":4},"Mercredi"]
[{"$nulls":4},"Jeudi"]
[{"$nulls":4},"Vendredi"]
[{"$nulls":4},"Samedi"]
[{"$nulls":4},"Dimanche"]
[{"$nulls":4},"Total des heures hebdomadaires",{"$f":"SUM(F14:F20)","v":{"v":15,"d":"15.0"}},{"v":2,"d":"2.0"},{"v":0,"d":"0.0"},{"v":0,"d":"0.0"},{"v":0,"d":"0.0"},{"v":0,"d":"0.0"},{"v":0,"d":"0.0"},{"v":0,"d":"0.0"},{"v":0,"d":"0.0"},{"v":0,"d":"0.0"}]
["Le total des heures normales (cellule F22) et des heures supplémentaires (cellule I22) effectuées en février est calculé automatiquement. L’instruction suivante figure dans la cellule A24.",{"$nulls":3},{"$f":"TEXT(DATEVALUE(Février[[#Headers],[Février]]&\"  \"&YEAR(TODAY())),\"mmm.\")&\" total : Heures normales\"","v":"févr. total : Heures normales"},{"$f":"SUM(Février[Semaine 1],Février[Semaine 2],Février[Semaine 3],Février[Semaine 4],Février[Semaine 5])","v":{"v":15,"d":"15.0"}},{"$f":"TEXT(DATEVALUE(Février[[#Headers],[Février]]&\" \"&YEAR(TODAY())),\"mmm.\")&\" total: Heures supplémentaires\"","v":"févr. total: Heures supplémentaires"},null,{"$f":"SUM(Février[Heures supplémentaires],Février[[Heures supplémentaires  ]],Février[[Heures supplémentaires   ]],Février[[Heures supplémentaires    ]],Février[[Heures supplémentaires     ]])","v":{"v":2,"d":"2.0"}}]
[]
["Entrez les heures normales et supplémentaires de mars dans la table correspondante à partir de la cellule E24. L’instruction suivante figure dans la cellule A33.",{"$nulls":3},"Mars","Semaine 1","Heures supplémentaires","Semaine 2","Heures supplémentaires ","Semaine 3","Heures supplémentaires  ","Semaine 4","Heures supplémentaires    ","Semaine 5","Heures supplémentaires     "]
[{"$nulls":4},"Lundi"]
[{"$nulls":4},"Mardi"]
[{"$nulls":4},"Mercredi"]
[{"$nulls":4},"Jeudi"]
[{"$nulls":4},"Vendredi"]
[{"$nulls":4},"Samedi"]
[{"$nulls":4},"Dimanche"]
[{"$nulls":4},"Total des heures hebdomadaires",{"$f":"SUM(F25:F31)","v":{"v":0,"d":"0.0"}},{"v":0,"d":"0.0"},{"v":0,"d":"0.0"},{"v":0,"d":"0.0"},{"v":0,"d":"0.0"},{"v":0,"d":"0.0"},{"v":0,"d":"0.0"},{"v":0,"d":"0.0"},{"v":0,"d":"0.0"},{"v":0,"d":"0.0"}]
["Le total des heures normales (cellule F33) et des heures supplémentaires (cellule I33) effectuées en mars est calculé automatiquement.",{"$nulls":3},{"$f":"TEXT(DATEVALUE(Mars[[#Headers],[Mars]]&\" \"&YEAR(TODAY())),\"mmm.\")&\" total : Heures normales\"","v":"mars. total : Heures normales"},{"$f":"SUM(Mars[Semaine 1],Mars[Semaine 2],Mars[Semaine 3],Mars[Semaine 4],Mars[Semaine 5])","v":{"v":0,"d":"0.0"}},{"$f":"TEXT(DATEVALUE(Mars[[#Headers],[Mars]]&\" \"&YEAR(TODAY())),\"mmm.\")&\" total: Heures supplémentaires\"","v":"mars. total: Heures supplémentaires"},null,{"$f":"SUM(Mars[Heures supplémentaires],Mars[[Heures supplémentaires ]],Mars[[Heures supplémentaires  ]],Mars[[Heures supplémentaires    ]],Mars[[Heures supplémentaires     ]])","v":{"v":0,"d":"0.0"}}]
["Le titre du deuxième trimestre (Avril, mai, juin) figure dans la cellule E34. ",{"$nulls":3},"Avril, mai, juin      Feuille de présence de l’employé : Heures quotidiennes, hebdomadaires, mensuelles, annuelles"]
["Entrez les heures normales et supplémentaires d’avril dans la table correspondante à partir de la cellule E35. L’instruction suivante figure dans la cellule A44.",{"$nulls":3},"Avril","Semaine 1","Heures supplémentaires","Semaine 2","Heures supplémentaires  ","Semaine 3","Heures supplémentaires   ","Semaine 4","Heures supplémentaires    ","Semaine 5","Heures supplémentaires     "]
[{"$nulls":4},"Lundi"]
[{"$nulls":4},"Mardi"]
[{"$nulls":4},"Mercredi"]
[{"$nulls":4},"Jeudi"]
[{"$nulls":4},"Vendredi"]
[{"$nulls":4},"Samedi"]
[{"$nulls":4},"Dimanche"]
[{"$nulls":4},"Total des heures hebdomadaires",{"$f":"SUM(F36:F42)","v":{"v":0,"d":"0.0"}},{"v":0,"d":"0.0"},{"v":0,"d":"0.0"},{"v":0,"d":"0.0"},{"v":0,"d":"0.0"},{"v":0,"d":"0.0"},{"v":0,"d":"0.0"},{"v":0,"d":"0.0"},{"v":0,"d":"0.0"},{"v":0,"d":"0.0"}]
["Le total des heures normales (cellule F44) et des heures supplémentaires (cellule I44) effectuées en avril est calculé automatiquement. L’instruction suivante figure dans la cellule A46.",{"$nulls":3},{"$f":"TEXT(DATEVALUE(Avril[[#Headers],[Avril]]&\" \"&YEAR(TODAY())),\"mmm.\")&\" total : Heures normales\"","v":"avr. total : Heures normales"},{"$f":"SUM(Avril[Semaine 1],Avril[Semaine 2],Avril[Semaine 3],Avril[Semaine 4],Avril[Semaine 5])","v":{"v":0,"d":"0.0"}},{"$f":"TEXT(DATEVALUE(Avril[[#Headers],[Avril]]&\" \"&YEAR(TODAY())),\"mmm.\")&\" total: Heures supplémentaires\"","v":"avr. total: Heures supplémentaires"},null,{"$f":"SUM(Avril[Heures supplémentaires],Avril[[Heures supplémentaires  ]],Avril[[Heures supplémentaires   ]],Avril[[Heures supplémentaires    ]],Avril[[Heures supplémentaires     ]])","v":{"v":0,"d":"0.0"}}]
[]
["Entrez les heures normales et supplémentaires de mai dans la table correspondante à partir de la cellule E46. L’instruction suivante figure dans la cellule A55.",{"$nulls":3},"Mai","Semaine 1","Heures supplémentaires","Semaine 2","Heures supplémentaires  ","Semaine 3","Heures supplémentaires   ","Semaine 4","Heures supplémentaires    ","Semaine 5","Heures supplémentaires     "]
[{"$nulls":4},"Lundi"]
[{"$nulls":4},"Mardi"]
[{"$nulls":4},"Mercredi"]
[{"$nulls":4},"Jeudi"]
[{"$nulls":4},"Vendredi"]
[{"$nulls":4},"Samedi"]
[{"$nulls":4},"Dimanche"]
[{"$nulls":4},"Total des heures hebdomadaires",{"$f":"SUM(F47:F53)","v":{"v":0,"d":"0.0"}},{"v":0,"d":"0.0"},{"v":0,"d":"0.0"},{"v":0,"d":"0.0"},{"v":0,"d":"0.0"},{"v":0,"d":"0.0"},{"v":0,"d":"0.0"},{"v":0,"d":"0.0"},{"v":0,"d":"0.0"},{"v":0,"d":"0.0"}]
["Le total des heures normales (cellule F55) et des heures supplémentaires (cellule I55) effectuées en mai est calculé automatiquement. L’instruction suivante figure dans la cellule A57.",{"$nulls":3},{"$f":"TEXT(DATEVALUE(Mai[[#Headers],[Mai]]&\" \"&YEAR(TODAY())),\"mmm.\")&\" total : Heures normales\"","v":"mai. total : Heures normales"},{"$f":"SUM(Mai[Semaine 1],Mai[Semaine 2],Mai[Semaine 3],Mai[Semaine 4],Mai[Semaine 5])","v":{"v":0,"d":"0.0"}},{"$f":"TEXT(DATEVALUE(Mai[[#Headers],[Mai]]&\" \"&YEAR(TODAY())),\"mmm.\")&\" total: Heures supplémentaires\"","v":"mai. total: Heures supplémentaires"},null,{"$f":"SUM(Mai[Heures supplémentaires],Mai[[Heures supplémentaires  ]],Mai[[Heures supplémentaires   ]],Mai[[Heures supplémentaires    ]],Mai[[Heures supplémentaires     ]])","v":{"v":0,"d":"0.0"}}]
[]
["Entrez les heures normales et supplémentaires de juin dans la table correspondante à partir de la cellule E57. L’instruction suivante figure dans la cellule A66.",{"$nulls":3},"Juin","Semaine 1","Heures supplémentaires","Semaine 2","Heures supplémentaires  ","Semaine 3","Heures supplémentaires   ","Semaine 4","Heures supplémentaires    ","Semaine 5","Heures supplémentaires     "]
[{"$nulls":4},"Lundi"]
[{"$nulls":4},"Mardi"]
[{"$nulls":4},"Mercredi"]
[{"$nulls":4},"Jeudi"]
[{"$nulls":4},"Vendredi"]
[{"$nulls":4},"Samedi"]
[{"$nulls":4},"Dimanche"]
[{"$nulls":4},"Total des heures hebdomadaires",{"$f":"SUM(F58:F64)","v":{"v":0,"d":"0.0"}},{"v":0,"d":"0.0"},{"v":0,"d":"0.0"},{"v":0,"d":"0.0"},{"v":0,"d":"0.0"},{"v":0,"d":"0.0"},{"v":0,"d":"0.0"},{"v":0,"d":"0.0"},{"v":0,"d":"0.0"},{"v":0,"d":"0.0"}]
["Le total des heures normales (cellule F66) et des heures supplémentaires (cellule I66) effectuées en juin est calculé automatiquement.",{"$nulls":3},{"$f":"TEXT(DATEVALUE(Juin[[#Headers],[Juin]]&\" \"&YEAR(TODAY())),\"mmm.\")&\" total : Heures normales\"","v":"juin. total : Heures normales"},{"$f":"SUM(Juin[Semaine 1],Juin[Semaine 2],Juin[Semaine 3],Juin[Semaine 4],Juin[Semaine 5])","v":{"v":0,"d":"0.0"}},{"$f":"TEXT(DATEVALUE(Juin[[#Headers],[Juin]]&\" \"&YEAR(TODAY())),\"mmm.\")&\" total: Heures supplémentaires\"","v":"juin. total: Heures supplémentaires"},null,{"$f":"SUM(Juin[Heures supplémentaires],Juin[[Heures supplémentaires  ]],Juin[[Heures supplémentaires   ]],Juin[[Heures supplémentaires    ]],Juin[[Heures supplémentaires     ]])","v":{"v":0,"d":"0.0"}}]
["Le titre du troisième trimestre (Juillet, août, septembre) figure dans la cellule E67. ",{"$nulls":3},"Juillet, août, septembre      Feuille de présence de l’employé : Heures quotidiennes, hebdomadaires, mensuelles, annuelles"]
["Entrez les heures normales et supplémentaires de juillet dans la table correspondante à partir de la cellule E68. L’instruction suivante figure dans la cellule A77.",{"$nulls":3},"Juillet","Semaine 1","Heures supplémentaires","Semaine 2","Heures supplémentaires ","Semaine 3","Heures supplémentaires  ","Semaine 4","Heures supplémentaires   ","Semaine 5","Heures supplémentaires     "]
[{"$nulls":4},"Lundi"]
[{"$nulls":4},"Mardi"]
[{"$nulls":4},"Mercredi"]
[{"$nulls":4},"Jeudi"]
[{"$nulls":4},"Vendredi"]
[{"$nulls":4},"Samedi"]
[{"$nulls":4},"Dimanche"]
[{"$nulls":4},"Total des heures hebdomadaires",{"$f":"SUM(F69:F75)","v":{"v":0,"d":"0.0"}},{"v":0,"d":"0.0"},{"v":0,"d":"0.0"},{"v":0,"d":"0.0"},{"v":0,"d":"0.0"},{"v":0,"d":"0.0"},{"v":0,"d":"0.0"},{"v":0,"d":"0.0"},{"v":0,"d":"0.0"},{"v":0,"d":"0.0"}]
["Le total des heures normales (cellule F77) et des heures supplémentaires (cellule I77) effectuées en juillet est calculé automatiquement. L’instruction suivante figure dans la cellule A79.",{"$nulls":3},{"$f":"TEXT(DATEVALUE(Juillet[[#Headers],[Juillet]]&\" \"&YEAR(TODAY())),\"mmm.\")&\" total : Heures normales\"","v":"juil. total : Heures normales"},{"$f":"SUM(Juillet[Semaine 1],Juillet[Semaine 2],Juillet[Semaine 3],Juillet[Semaine 4],Juillet[Semaine 5])","v":{"v":0,"d":"0.0"}},{"$f":"TEXT(DATEVALUE(Juillet[[#Headers],[Juillet]]&\" \"&YEAR(TODAY())),\"mmm.\")&\" total: Heures supplémentaires\"","v":"juil. total: Heures supplémentaires"},null,{"$f":"SUM(Juillet[Heures supplémentaires],Juillet[[Heures supplémentaires ]],Juillet[[Heures supplémentaires  ]],Juillet[[Heures supplémentaires   ]],Juillet[[Heures supplémentaires     ]])","v":{"v":0,"d":"0.0"}}]
[]
["Entrez les heures normales et supplémentaires d’août dans la table correspondante à partir de la cellule E79. L’instruction suivante figure dans la cellule A88.",{"$nulls":3},"Août","Semaine 1","Heures supplémentaires","Semaine 2","Heures supplémentaires ","Semaine 3","Heures supplémentaires   ","Semaine 4","Heures supplémentaires  ","Semaine 5","Heures supplémentaires    "]
[{"$nulls":4},"Lundi"]
[{"$nulls":4},"Mardi"]
[{"$nulls":4},"Mercredi"]
[{"$nulls":4},"Jeudi"]
[{"$nulls":4},"Vendredi"]
[{"$nulls":4},"Samedi"]
[{"$nulls":4},"Dimanche"]
[{"$nulls":4},"Total des heures hebdomadaires",{"$f":"SUBTOTAL(109,Août[Semaine 1])","v":{"v":0,"d":"0.0"}},{"$f":"SUBTOTAL(109,Août[Heures supplémentaires])","v":{"v":0,"d":"0.0"}},{"$f":"SUBTOTAL(109,Août[Semaine 2])","v":{"v":0,"d":"0.0"}},{"$f":"SUBTOTAL(109,Août[[Heures supplémentaires ]])","v":{"v":0,"d":"0.0"}},{"$f":"SUBTOTAL(109,Août[Semaine 3])","v":{"v":0,"d":"0.0"}},{"$f":"SUBTOTAL(109,Août[[Heures supplémentaires   ]])","v":{"v":0,"d":"0.0"}},{"$f":"SUBTOTAL(109,Août[Semaine 4])","v":{"v":0,"d":"0.0"}},{"$f":"SUBTOTAL(109,Août[[Heures supplémentaires  ]])","v":{"v":0,"d":"0.0"}},{"$f":"SUBTOTAL(109,Août[Semaine 5])","v":{"v":0,"d":"0.0"}},{"$f":"SUBTOTAL(109,Août[[Heures supplémentaires    ]])","v":{"v":0,"d":"0.0"}}]
["Le total des heures normales (cellule F88) et des heures supplémentaires (cellule I88) effectuées en août est calculé automatiquement. L’instruction suivante figure dans la cellule A90.",{"$nulls":3},{"$f":"TEXT(DATEVALUE(Août[[#Headers],[Août]]&\" \"&YEAR(TODAY())),\"mmm.\")&\" total : Heures normales\"","v":"août. total : Heures normales"},{"$f":"SUM(Août[Semaine 1],Août[Semaine 2],Août[Semaine 3],Août[Semaine 4],Août[Semaine 5])","v":{"v":0,"d":"0.0"}},{"$f":"TEXT(DATEVALUE(Août[[#Headers],[Août]]&\" \"&YEAR(TODAY())),\"mmm.\")&\" total: Heures supplémentaires\"","v":"août. total: Heures supplémentaires"},null,{"$f":"SUM(Août[Heures supplémentaires],Août[[Heures supplémentaires ]],Août[[Heures supplémentaires   ]],Août[[Heures supplémentaires  ]],Août[[Heures supplémentaires    ]])","v":{"v":0,"d":"0.0"}}]
[]
["Entrez les heures normales et supplémentaires de septembre dans la table correspondante à partir de la cellule E90. L’instruction suivante figure dans la cellule A99.",{"$nulls":3},"Septembre","Semaine 1","Heures supplémentaires","Semaine 2","Heures supplémentaires ","Semaine 3","Heures supplémentaires  ","Semaine 4","Heures supplémentaires   ","Semaine 5","Heures supplémentaires    "]
[{"$nulls":4},"Lundi"]
[{"$nulls":4},"Mardi"]
[{"$nulls":4},"Mercredi"]
[{"$nulls":4},"Jeudi"]
[{"$nulls":4},"Vendredi"]
[{"$nulls":4},"Samedi"]
[{"$nulls":4},"Dimanche"]
[{"$nulls":4},"Total des heures hebdomadaires",{"$f":"SUBTOTAL(109,Septembre[Semaine 1])","v":{"v":0,"d":"0.0"}},{"$f":"SUBTOTAL(109,Septembre[Heures supplémentaires])","v":{"v":0,"d":"0.0"}},{"$f":"SUBTOTAL(109,Septembre[Semaine 2])","v":{"v":0,"d":"0.0"}},{"$f":"SUBTOTAL(109,Septembre[[Heures supplémentaires ]])","v":{"v":0,"d":"0.0"}},{"$f":"SUBTOTAL(109,Septembre[Semaine 3])","v":{"v":0,"d":"0.0"}},{"$f":"SUBTOTAL(109,Septembre[[Heures supplémentaires  ]])","v":{"v":0,"d":"0.0"}},{"$f":"SUBTOTAL(109,Septembre[Semaine 4])","v":{"v":0,"d":"0.0"}},{"$f":"SUBTOTAL(109,Septembre[[Heures supplémentaires   ]])","v":{"v":0,"d":"0.0"}},{"$f":"SUBTOTAL(109,Septembre[Semaine 5])","v":{"v":0,"d":"0.0"}},{"$f":"SUBTOTAL(109,Septembre[[Heures supplémentaires    ]])","v":{"v":0,"d":"0.0"}}]
["Le total des heures normales (cellule F99) et des heures supplémentaires (cellule I99) effectuées en septembre est calculé automatiquement.",{"$nulls":3},{"$f":"TEXT(DATEVALUE(Septembre[[#Headers],[Septembre]]&\" \"&YEAR(TODAY())),\"mmm.\")&\" total : Heures normales\"","v":"sept. total : Heures normales"},{"$f":"SUM(Septembre[Semaine 1],Septembre[Semaine 2],Septembre[Semaine 3],Septembre[Semaine 4],Septembre[Semaine 5])","v":{"v":0,"d":"0.0"}},{"$f":"TEXT(DATEVALUE(Septembre[[#Headers],[Septembre]]&\" \"&YEAR(TODAY())),\"mmm.\")&\" total: Heures supplémentaires\"","v":"sept. total: Heures supplémentaires"},null,{"$f":"SUM(Septembre[Heures supplémentaires],Septembre[[Heures supplémentaires ]],Septembre[[Heures supplémentaires  ]],Septembre[[Heures supplémentaires   ]],Septembre[[Heures supplémentaires    ]])","v":{"v":0,"d":"0.0"}}]
["Le titre du quatrième trimestre (Octobre, novembre, décembre) figure dans la cellule E100. ",{"$nulls":3},"Octobre, novembre, décembre      Feuille de présence de l’employé : Heures quotidiennes, hebdomadaires, mensuelles, annuelles"]
["Entrez les heures normales et supplémentaires d’octobre dans la table correspondante à partir de la cellule E101. L’instruction suivante figure dans la cellule A110.",{"$nulls":3},"Octobre","Semaine 1","Heures supplémentaires","Semaine 2","Heures supplémentaires ","Semaine 3","Heures supplémentaires  ","Semaine 4","Heures supplémentaires   ","Semaine 5","Heures supplémentaires    "]
[{"$nulls":4},"Lundi"]
[{"$nulls":4},"Mardi"]
[{"$nulls":4},"Mercredi"]
[{"$nulls":4},"Jeudi"]
[{"$nulls":4},"Vendredi"]
[{"$nulls":4},"Samedi"]
[{"$nulls":4},"Dimanche"]
[{"$nulls":4},"Total des heures hebdomadaires",{"$f":"SUBTOTAL(109,Octobre[Semaine 1])","v":{"v":0,"d":"0.0"}},{"$f":"SUBTOTAL(109,Octobre[Heures supplémentaires])","v":{"v":0,"d":"0.0"}},{"$f":"SUBTOTAL(109,Octobre[Semaine 2])","v":{"v":0,"d":"0.0"}},{"$f":"SUBTOTAL(109,Octobre[[Heures supplémentaires ]])","v":{"v":0,"d":"0.0"}},{"$f":"SUBTOTAL(109,Octobre[Semaine 3])","v":{"v":0,"d":"0.0"}},{"$f":"SUBTOTAL(109,Octobre[[Heures supplémentaires  ]])","v":{"v":0,"d":"0.0"}},{"$f":"SUBTOTAL(109,Octobre[Semaine 4])","v":{"v":0,"d":"0.0"}},{"$f":"SUBTOTAL(109,Octobre[[Heures supplémentaires   ]])","v":{"v":0,"d":"0.0"}},{"$f":"SUBTOTAL(109,Octobre[Semaine 5])","v":{"v":0,"d":"0.0"}},{"$f":"SUBTOTAL(109,Octobre[[Heures supplémentaires    ]])","v":{"v":0,"d":"0.0"}}]
["Le total des heures normales (cellule F110) et des heures supplémentaires (cellule I110) effectuées en octobre est calculé automatiquement. L’instruction suivante figure dans la cellule A112.",{"$nulls":3},{"$f":"TEXT(DATEVALUE(Octobre[[#Headers],[Octobre]]&\" \"&YEAR(TODAY())),\"mmm.\")&\" total : Heures normales\"","v":"oct. total : Heures normales"},{"$f":"SUM(Octobre[Semaine 1],Octobre[Semaine 2],Octobre[Semaine 3],Octobre[Semaine 4],Octobre[Semaine 5])","v":{"v":0,"d":"0.0"}},{"$f":"TEXT(DATEVALUE(Octobre[[#Headers],[Octobre]]&\" \"&YEAR(TODAY())),\"mmm.\")&\" total: Heures supplémentaires\"","v":"oct. total: Heures supplémentaires"},null,{"$f":"SUM(Octobre[Heures supplémentaires],Octobre[[Heures supplémentaires ]],Octobre[[Heures supplémentaires  ]],Octobre[[Heures supplémentaires   ]],Octobre[[Heures supplémentaires    ]])","v":{"v":0,"d":"0.0"}}]
[]
["Entrez les heures normales et supplémentaires de novembre dans la table correspondante à partir de la cellule E112. L’instruction suivante figure dans la cellule A121.",{"$nulls":3},"Novembre","Semaine 1","Heures supplémentaires","Semaine 2","Heures supplémentaires ","Semaine 3","Heures supplémentaires  ","Semaine 4","Heures supplémentaires    ","Semaine 5","Heures supplémentaires     "]
[{"$nulls":4},"Lundi"]
[{"$nulls":4},"Mardi"]
[{"$nulls":4},"Mercredi"]
[{"$nulls":4},"Jeudi"]
[{"$nulls":4},"Vendredi"]
[{"$nulls":4},"Samedi"]
[{"$nulls":4},"Dimanche"]
[{"$nulls":4},"Total des heures hebdomadaires",{"$f":"SUBTOTAL(109,Novembre[Semaine 1])","v":{"v":0,"d":"0.0"}},{"$f":"SUBTOTAL(109,Novembre[Heures supplémentaires])","v":{"v":0,"d":"0.0"}},{"$f":"SUBTOTAL(109,Novembre[Semaine 2])","v":{"v":0,"d":"0.0"}},{"$f":"SUBTOTAL(109,Novembre[[Heures supplémentaires ]])","v":{"v":0,"d":"0.0"}},{"$f":"SUBTOTAL(109,Novembre[Semaine 3])","v":{"v":0,"d":"0.0"}},{"$f":"SUBTOTAL(109,Novembre[[Heures supplémentaires  ]])","v":{"v":0,"d":"0.0"}},{"$f":"SUBTOTAL(109,Novembre[Semaine 4])","v":{"v":0,"d":"0.0"}},{"$f":"SUBTOTAL(109,Novembre[[Heures supplémentaires    ]])","v":{"v":0,"d":"0.0"}},{"$f":"SUBTOTAL(109,Novembre[Semaine 5])","v":{"v":0,"d":"0.0"}},{"$f":"SUBTOTAL(109,Novembre[[Heures supplémentaires     ]])","v":{"v":0,"d":"0.0"}}]
["Le total des heures normales (cellule F121) et des heures supplémentaires (cellule I121) effectuées en novembre est calculé automatiquement. L’instruction suivante figure dans la cellule A123.",{"$nulls":3},{"$f":"TEXT(DATEVALUE(Novembre[[#Headers],[Novembre]]&\" \"&YEAR(TODAY())),\"mmm.\")&\" total : Heures normales\"","v":"nov. total : Heures normales"},{"$f":"SUM(Novembre[Semaine 1],Novembre[Semaine 2],Novembre[Semaine 3],Novembre[Semaine 4],Novembre[Semaine 5])","v":{"v":0,"d":"0.0"}},{"$f":"TEXT(DATEVALUE(Novembre[[#Headers],[Novembre]]&\" \"&YEAR(TODAY())),\"mmm.\")&\" total: Heures supplémentaires\"","v":"nov. total: Heures supplémentaires"},null,{"$f":"SUM(Novembre[Heures supplémentaires],Novembre[[Heures supplémentaires ]],Novembre[[Heures supplémentaires  ]],Novembre[[Heures supplémentaires    ]],Novembre[[Heures supplémentaires     ]])","v":{"v":0,"d":"0.0"}}]
[]
["Entrez les heures normales et supplémentaires de décembre dans la table correspondante à partir de la cellule E123. L’instruction suivante figure dans la cellule A132.",{"$nulls":3},"Décembre","Semaine 1","Heures supplémentaires","Semaine 2","Heures supplémentaires ","Semaine 3","Heures supplémentaires  ","Semaine 4","Heures supplémentaires   ","Semaine 5","Heures supplémentaires    "]
[{"$nulls":4},"Lundi"]
[{"$nulls":4},"Mardi"]
[{"$nulls":4},"Mercredi"]
[{"$nulls":4},"Jeudi"]
[{"$nulls":4},"Vendredi"]
[{"$nulls":4},"Samedi"]
[{"$nulls":4},"Dimanche"]
[{"$nulls":4},"Total des heures hebdomadaires",{"$f":"SUBTOTAL(109,Décembre[Semaine 1])","v":{"v":0,"d":"0.0"}},{"$f":"SUBTOTAL(109,Décembre[Heures supplémentaires])","v":{"v":0,"d":"0.0"}},{"$f":"SUBTOTAL(109,Décembre[Semaine 2])","v":{"v":0,"d":"0.0"}},{"$f":"SUBTOTAL(109,Décembre[[Heures supplémentaires ]])","v":{"v":0,"d":"0.0"}},{"$f":"SUBTOTAL(109,Décembre[Semaine 3])","v":{"v":0,"d":"0.0"}},{"$f":"SUBTOTAL(109,Décembre[[Heures supplémentaires  ]])","v":{"v":0,"d":"0.0"}},{"$f":"SUBTOTAL(109,Décembre[Semaine 4])","v":{"v":0,"d":"0.0"}},{"$f":"SUBTOTAL(109,Décembre[[Heures supplémentaires   ]])","v":{"v":0,"d":"0.0"}},{"$f":"SUBTOTAL(109,Décembre[Semaine 5])","v":{"v":0,"d":"0.0"}},{"$f":"SUBTOTAL(109,Décembre[[Heures supplémentaires    ]])","v":{"v":0,"d":"0.0"}}]
["Le total des heures normales (cellule F132) et des heures supplémentaires (cellule I132) effectuées en décembre est calculé automatiquement.",{"$nulls":3},{"$f":"TEXT(DATEVALUE(Décembre[[#Headers],[Décembre]]&\" \"&YEAR(TODAY())),\"mmm.\")&\" total : Heures normales\"","v":"déc. total : Heures normales"},{"$f":"SUM(Décembre[Semaine 1],Décembre[Semaine 2],Décembre[Semaine 3],Décembre[Semaine 4],Décembre[Semaine 5])","v":{"v":0,"d":"0.0"}},{"$f":"TEXT(DATEVALUE(Décembre[[#Headers],[Décembre]]&\" \"&YEAR(TODAY())),\"mmm.\")&\" total: Heures supplémentaires\"","v":"déc. total: Heures supplémentaires"},null,{"$f":"SUM(G124:G130,I124:I130,K124:K130,M124:M130,O124:O130)","v":{"v":0,"d":"0.0"}}]